Cogmind - Beta 14 @@@ ROGUE MODE // 2024.08.15 @ 23:53:30 Player: opdo Result: Destroyed by Autobeam Turret with Autobeam Performance ------------- Evolutions (0) 0 Regions Visited (2) 400 Robots Destroyed (19) 95 Value Destroyed (442) 442 Prototype IDs (11) 220 Alien Tech Used (0) 0 Bonus (0) 0 TOTAL SCORE: 1157 Bonus ------- None Cogmind --------- Core Integrity 0/250 Matter 171/300 Energy 199/200 System Corruption 6% Temperature Cool (6) Movement Rolling (110) Location -10/Subcaves Parts ------- > --- POWER (1) -------- Subdweller Power Source > --- PROPULSION (2) --- Spiked Treads Subdweller Monowheel > --- UTILITY (2) ------ Small Storage Unit > --- WEAPON (2) ------- Light Assault Rifle > --- INVENTORY (8) ---- Arachnoskeleton Mining Claw Peak State ------------ > --- POWER ------------ Ion Engine > --- PROPULSION ------- Aluminum Leg Aluminum Leg > --- UTILITY ---------- Small Storage Unit Improved Terrain Scanner > --- WEAPON ----------- Battle Rifle Subdweller Machine Gun > --- INVENTORY -------- Subdweller Power Source Spiked Treads Arachnoskeleton Subdweller Monowheel Subdweller Shrapnel Launcher Mining Claw [Rating: 14] Favorites ----------- Power Ion Engine Engine Ion Engine Propulsion Aluminum Leg Treads Spiked Treads Leg Aluminum Leg Wheel Subdweller Monowheel Utility Small Storage Unit Device Improved Terrain Scanner Storage Small Storage Unit Weapon Small Laser Energy Gun Small Laser Ballistic Gun Subdweller Machine Gun Launcher Subdweller Shrapnel Launcher Slashing Weapon Mining Claw Build | -11 -10 -10 ------- Run | Yrd Mat Sub Slots Evolved . | . . . Power . | . . . Propulsion . | . . . Utility . | . . . Weapon . | . . . Parts Attached 26 | 7 3 16 Power 6 | 1 1 4 Engine 6 | 1 1 4 Core . | . . . Reactor . | . . . Propulsion 4 | 2 . 2 Treads 1 | . . 1 Leg 2 | 2 . . Wheel 1 | . . 1 Hover . | . . . Flight . | . . . Utility 2 | 2 . . Device 1 | 1 . . Storage 1 | 1 . . Processor . | . . . Hackware . | . . . Protection . | . . . Artifact . | . . . Weapon 14 | 2 2 10 Energy Gun 3 | 1 1 1 Energy Cannon . | . . . Ballistic Gun 7 | 1 . 6 Ballistic Cannon . | . . . Launcher 1 | . . 1 Special Weapon . | . . . Impact Weapon . | . . . Slashing Weapon 3 | . 1 2 Piercing Weapon . | . . . Special Melee Weapon . | . . . Unidentified Prototypes . | . . . Parts Lost 8 | . . 8 Power 2 | . . 2 Propulsion 2 | . . 2 Utility 1 | . . 1 Weapon 3 | . . 3 Highest Loss Streak 6 | . . 6 To Critical Strikes . | . . . Average Slot Usage (%) 97 | . 99 97 Engine 13 | . 13 13 Treads 1 | . . 1 Leg 25 | . 28 24 Wheel 1 | . . 1 Device 12 | . 14 12 Storage 14 | . 14 14 Energy Gun 18 | . 25 15 Ballistic Gun 7 | . 1 9 Slashing Weapon 1 | . . 2 Peak Build Rating 14 | 9 9 14 Average Rating 10 | 5 8 10 On Entrance 6 | . 9 9 Naked Turns . | . . . Heaviest Build 17 | 14 14 17 Greatest Support 20 | 20 20 20 Greatest Overweight (x) 5 | 4 . 5 Average Overweight (x) . | . . . Largest Inventory Capacity 8 | 8 8 8 Average Capacity 7 | 7 8 8 Most Carried 8 | 4 8 8 Average Carried 7 | 2 6 7 Final Capacity 8 | 8 8 8 Final Carried 8 | 4 8 4 Class Distribution -------------------- 100% | Mutant Dominant Class ---------------- Mutant | -10/Materials Mutant | -10/Subcaves Resources | -11 -10 -10 ----------- Run | Yrd Mat Sub Matter Collected 581 | 129 150 302 Remotely . | . . . Salvage Created 442 | 15 162 265 Parts 33 | 2 16 15 Haulers Intercepted . | . . . Recyclers Shooed . | . . . Parts Field Recycled . | . . . Retrieved Matter . | . . . Parts Self-Destructed 9 | . . 9 Prevented . | . . . Kills | -11 -10 -10 ------- Run | Yrd Mat Sub Combat Hostiles Destroyed 16 | . 7 9 Guns 15 | . 7 8 AOE 1 | . . 1 Classes Destroyed 6 | 1 3 2 Tunneler 1 | 1 . . Turret 1 | . . 1 Watcher 1 | . 1 . Swarmer 8 | . 5 3 Grunt 4 | . 2 2 Subdweller 4 | . . 4 Best Kill Streak 5 | 1 4 5 Combat Bots Only 5 | . 4 5 Max Kills in Single Turn 1 | 1 1 1 Gunslinging . | . . . Exploded 1 | . . 1 Melee . | . . . Uniques/NPCs Destroyed . | . . . Combat | -11 -10 -10 -------- Run | Yrd Mat Sub Hostile Shots Fired 153 | . 18 135 Missed 48 | . 2 46 Damage Taken 1033 | . 136 897 Core 250 | . 26 224 Absorbed by Shields . | . . . Core Remaining (%) 100 | 100 . . Volleys Fired 70 | 2 24 44 Largest 2 | 2 2 2 Hottest 80 | 60 80 80 Shots Fired 123 | 4 48 71 Gun 117 | 4 48 65 Cannon . | . . . Launcher 6 | . . 6 Special . | . . . Kinetic 59 | 2 4 53 Thermal 64 | 2 44 18 Explosive . | . . . Electromagnetic . | . . . Robot Hit Streak 16 | 3 6 16 Robot Miss Streak 5 | 1 5 4 Penetration Max . | . . . Secondary Targets 1 | . . 1 Max Gunslinging Chain 1 | . . 1 Shots Hit Robots 72 | 3 22 47 Core Hits 31 | 1 10 20 Critical Kills 1 | . . 1 Critical Parts Destroyed . | . . . Critical Strikes 1 | . . 1 Destroy 1 | . . 1 Melee Attacks 11 | . 7 4 Impact . | . . . Slashing 11 | . 7 4 Piercing . | . . . Sneak Attacks 2 | . 2 . Combat Hostiles . | . . . Follow-up Attacks . | . . . Damage Inflicted 1505 | 33 358 1114 Guns 926 | 33 262 631 Cannons . | . . . Explosions 483 | . . 483 Melee 90 | . 90 . Ramming 6 | . 6 . Kinetic 1014 | 22 10 982 Thermal 395 | 11 252 132 Explosive . | . . . Electromagnetic . | . . . Impact . | . . . Slashing 90 | . 90 . Piercing . | . . . Highest Corruption 6 | . 6 6 Average Corruption 5 | . 5 6 Corruption Purged . | . . . Corruption Blocked . | . . . Effects 37 | . 4 33 Message Errors 4 | . 1 3 Matter Fused 6 | . . 6 Heat Flow Errors 6 | . 1 5 Energy Discharges 6 | . . 6 Data Loss (minor) 11 | . 2 9 Data Loss (major) 1 | . . 1 Alerts 2 | . . 2 Weapon Failures 1 | . . 1 Overload Shots . | . . . Overflow Damage 66 | . 66 . Projectiles . | . . . Explosions . | . . . Melee 66 | . 66 . Knockbacks . | . . . Impact . | . . . Kinetic . | . . . Secondary . | . . . Self-Inflicted Damage . | . . . Shots . | . . . Rammed . | . . . Targets Rammed 1 | . 1 . Kicked 1 | . 1 . Crushed . | . . . Highest Temperature 255 | . 161 255 Average Temperature 51 | . 33 102 Received Heat Transfer 294 | . 24 270 Siege Activations . | . . . Robots Corrupted . | . . . Combat Hostiles . | . . . Parts Fried . | . . . Impact Corruptions . | . . . Robots Melted . | . . . Combat Hostiles . | . . . Parts Melted 2 | . 2 . Heat Transferred 900 | 25 575 300 Parts Sabotaged . | . . . Parts Stolen . | . . . Parts Stripped . | . . . Power Chain Reactions . | . . . Alert | -11 -10 -10 ------- Run | Yrd Mat Sub Peak Influence 301 | 5 301 . Initial 3 | . 3 . Average 138 | . 157 . Maximum Alert Level 1 | . 1 . Low Security (%) 75 | 100 72 . Level 1 24 | . 27 . Level 2 . | . . . Level 3 . | . . . Level 4 . | . . . Level 5 . | . . . High Security . | . . . Max Security . | . . . Squads Dispatched 1 | . 1 . Investigation . | . . . Extermination . | . . . Reinforcement 1 | . 1 . Assault . | . . . Garrison . | . . . Intercept . | . . . Searches Triggered . | . . . Construction Impeded . | . . . Haulers Reinforced . | . . . Active Scanning Responses . | . . . Cargo Convoy Interrupts . | . . . Stealth | -11 -10 -10 --------- Run | Yrd Mat Sub Distress Signals 1 | . 1 . Communications Jammed . | . . . Distress Signals . | . . . Times Spotted 29 | . 16 13 Peak Tracking Total 6 | . 5 6 Tactical Retreats 4 | . 3 1 Traps | -11 -10 -10 ------- Run | Yrd Mat Sub Traps Triggered 5 | . 5 . Indirectly . | . . . Trap Hack Attempts . | . . . Triggered . | . . . Disarmed . | . . . Reprogrammed . | . . . Reused . | . . . Traps Extracted . | . . . Installed 1 | . . 1 Triggered . | . . . Machines | -11 -10 -10 ---------- Run | Yrd Mat Sub Machines Disabled 1 | . . 1 Max in Single Turn 1 | . . 1 Machines Repaired . | . . . Machines Dismantled . | . . . Machines Sabotaged . | . . . Overloaded Fab Kills . | . . . Hacking | -11 -10 -10 --------- Run | Yrd Mat Sub Machines Accessed 8 | . 6 2 Terminals 5 | . 5 . Fabricators . | . . . Repair Stations . | . . . Recycling Units 1 | . 1 . Scanalyzers . | . . . Garrison Access . | . . . Total Hacks 29 | . 17 12 Successful 17 | . 5 12 Failed 12 | . 12 . Catastrophic 1 | . 1 . Database Lockouts . | . . . Manual 11 | . 11 . Terminals 13 | . 13 . Fabricators . | . . . Repair Stations . | . . . Recycling Units 4 | . 4 . Scanalyzers . | . . . Garrison Access . | . . . Terminal Hacks 14 | . 2 12 Record 11 | . . 11 Zone Layout 2 | . 2 . Derelict Proto ID Bank 1 | . . 1 Fabricator Hacks . | . . . Repair Station Hacks . | . . . Recycling Unit Hacks 2 | . 2 . Report Inventory 1 | . 1 . Retrieve Components 1 | . 1 . Scanalyzer . | . . . Garrison Access Hacks . | . . . Unauthorized Hacks 1 | . 1 . Terminals 1 | . 1 . Botnet 1 | . 1 . Fabricators . | . . . Repair Stations . | . . . Recycling Units . | . . . Scanalyzers . | . . . Garrison Access . | . . . Data Cores Recovered . | . . . Used . | . . . Hacking Detections 5 | . 5 . Full Trace Events . | . . . Feedback Events . | . . . Feedback Blocked . | . . . Robot Schematics Acquired . | . . . Robots Built . | . . . Authchips . | . . . Time . | . . . Total Robot Build Rating . | . . . Part Schematics Acquired . | . . . Parts Built . | . . . Authchips . | . . . Time . | . . . Total Part Build Rating . | . . . Parts Repaired . | . . . Time . | . . . Parts Recycled . | . . . Recycled Matter . | . . . Retrieved Matter . | . . . Retrieved Components 10 | . 10 . Parts Scanalyzed . | . . . Part Schematics Acquired . | . . . Parts Damaged . | . . . Bothacking | -11 -10 -10 ------------ Run | Yrd Mat Sub Used RIF Installer . | . . . Robots Hacked . | . . . Non-combat . | . . . Combat . | . . . Robot Hacks Applied . | . . . Relay Couplers Released . | . . . Fabnet Peak Effective % . | . . . Robots Rewired . | . . . Allies Hacked . | . . . Hacks Repelled . | . . . Allies | -11 -10 -10 -------- Run | Yrd Mat Sub Total Allies . | . . . Largest Group . | . . . Highest-Rated Group . | . . . Highest-Rated Ally . | . . . Total Orders . | . . . Ally Attacks . | . . . Total Damage . | . . . Kills . | . . . Allies Corrupted . | . . . Allies Melted . | . . . Intel | -11 -10 -10 ------- Run | Yrd Mat Sub Robot Analysis Total . | . . . Derelict Logs Recovered 2 | . . 2 Drone Launches . | . . . Drone Recoveries . | . . . Exploration | -11 -10 -10 ------------- Run | Yrd Mat Sub Turns Passed 1728 | 65 481 1182 Spaces Moved 1191 | 35 298 858 Core 8 | 7 . 1 Treads . | . . . Legs 1098 | 28 298 772 Wheels 85 | . . 85 Hover . | . . . Flight . | . . . Fastest Speed 50 | 50 120 110 Average Speed 119 | 129 120 119 Slowest Speed 300 | 250 120 300 Overloaded Moves . | . . . Propulsion Burnouts . | . . . Robots Hopped . | . . . Cave-ins Triggered . | . . . Exploration Rate (%) 36 | 4 50 56 Regions Visited 2 Branch Regions 1 Pre-discovered Areas 1 | . . 1 Known Exits Taken . | . . . Unknown Exits Taken 2 | 1 1 . Scrap Searched 4 | . . 4 Spaces Dug . | . . . Terrain Destroyed 46 | . . 46 Melee . | . . . Projectile . | . . . AOE 46 | . . 46 Terrain Rammed . | . . . Walls Destroyed . | . . . Machines Disabled . | . . . Actions | -11 -10 -10 --------- Run | Yrd Mat Sub Total 1347 | 47 358 942 Wait 20 | . 20 . Move 1189 | 34 297 858 Hop . | . . . Pick Up 15 | 4 4 7 Fast Attach 11 | 7 2 2 Attach 5 | . . 5 Detach 2 | . 1 1 Swap 10 | . 1 9 Drop 12 | . 1 11 Fire 70 | 2 24 44 Melee 11 | . 7 4 Ram . | . . . Kick 1 | . 1 . Crush . | . . . Escape Stasis . | . . . Rewire . | . . . Trap 1 | . . 1 Miscellaneous . | . . . Route ------- -11/Scrapyard -10/Materials -10/Subcaves (discovered 1 exit: Mat) History --------- Turn | Location | Event 26 | -11/Scrapyard | Discovered new exit (range 15) 66 | -11/Scrapyard | Entered Materials 307 | -10/Materials | Build established: Mutant 536 | -10/Materials | Discovered new exit (range 3) 547 | -10/Materials | Entered Subcaves 721 | -10/Subcaves | Learned location of Storage (-9) 748 | -10/Subcaves | Identified exit to Materials 861 | -10/Subcaves | Visited Clippyterm 865 | -10/Subcaves | Learned 40 Factory zone layouts 1302 | -10/Subcaves | Visited 4L-MR0's lab 1398 | -10/Subcaves | Found Arachnoskeleton 1517 | -10/Subcaves | Ambushed by Subdwellers from Twisted Machinery 1589 | -10/Subcaves | Core integrity fell below 50% 1627 | -10/Subcaves | Lost 6 parts (2p2n1u1w) 1700 | -10/Subcaves | Core integrity fell below 20% 1729 | -10/Subcaves | Destroyed by Autobeam Turret with Autobeam Last Messages --------------- 01608_ Lgt. Assault Rifle fries itself beyond repair. 01608_ Aluminum Leg fries itself beyond repair. 01608_ S-10 Pest destroyed. 01609_ Flight Unit fries itself beyond repair. 01610_ Aluminum Leg fries itself beyond repair. 01611_ Acquired 19 matter. 01612_ Acquired 17 matter. 01614_ Acquired Lgt. Assault Rifle. 01620_ Acquired 90 matter. 01621_ Flight Unit fries itself beyond repair. 01623_ Acquired 44 matter. 01643_ System corrupted: Heat flow error (+178). 01676_ System corrupted: Matter fused (-8). 01697_ System corrupted: IFF burst signal emitted. 01697_ Acquired 16 matter. 01711_ Autobeam Turret destroyed. 01717_ System corrupted: Component data lost. 01723_ Sub. Machine Gun destroyed. Map ----- +----------------------------------------------------+ | ?????????????????????????????????????????????????? | | ?????????????????????????????????????????????????? | | ?????????????????????????????????????????????????? | | ?????????????????????????????????????????????????? | | ?????????????????????????????????????????????????? | | ?????????????????????????????????????????????????? | | ?????????????????????????????????????????????????? | | ?????????????????????????????????????????????????? | | ?????????????????????????????????????????????????? | | ???#?????????????????????????????????????????????? | | ??#????????????????????? ????????????????????????? | | ????????????????????? " "???????????????????????? | | ?????????????????????? t% ???????????????????????? | | ?????????????????????? ???????????????????????? | | ?????????????????????? ???????######??????###? | | ?????????????????????? ??????## ###???? ## | | ??????????????????????# #??????# ##??# # | | ??????????????????????# #???#?# ## ### # | | ????????#?????????????# #?????# ### #?? | | ??????????????????????# #?????####??# ##?? | | ?????????????????##???# #?#?????????# ##??? | | ??????##??????????????# #???????????# #???? | | ??????????????????????# #?????###???## #???? | | ???????#??????????????# #????## ##??## #???? | | ??????#?????######?#### #????# ##?# ##?### | | ????????##### ""# ##;;; @###??# #?# ### # | | #??????## ; ; ##?# #?# # | | ????#?## #?## #??## ## | | ?????## ? ## ### ##### #? | | ???? ??# & ## ##"## #? | | ????? ### && ## #? | | ?????????# % ## ] ##? | | ?????????## ###& ### | | ????#??### # ##?## | | ?? ?????# #######???## " # | | ??????## " ###??#?????## ### | | ???#??### !! # ##????????## #?# | | ### ???????## ### #?????????## ### | | ##???#???????# ##### #??????????## ##?### | | ####????##???# #### ##???????????###????## | | ##????????# ## #????????????????????#" | | ##???????# ] ### ##????????????????????"" | | ######### #### #?????????????#??????? | | ## ## ## ###?????????"" ??????? | | ## #####???? ""??????? | | ## ## #### ""?????? | | """" "? ???? # | | ### " #?????????????? | | ## #?## #"##?????????????? | | ##### #??## ######??????????????? | +----------------------------------------------------+ Best States ------------- Heat Dissipation 25 Energy Generation 15 Energy Capacity 250 Matter Stores 300 Matter Capacity 300 Sight Range 16 Terrain Scan Range 16 Terrain Scan Density 10 Evasion (%) 55 Recoil Reduction 1 Item Schematics ----------------- None Robot Schematics ------------------ None Fabricated ------------ Nothing Alien Tech Used ----------------- None Achievements -------------- None Challenges ------------ None Game ------ Seed EtherialAntimatterTrap Manual? 0 Play Time 00:17:04 Cumulative 56.2 hours Start 2024.08.15 @ 23:38:37 End 2024.08.15 @ 23:53:30 Sessions 1 Manual Loads 0 Difficulty Rogue Special Mode None Game No. 165 Rogue 163 Adventurer 2 Explorer 0 Win Type - Total 0 Types 0/0/0/0/0/0/0/0/0 Lore% 45 Gallery% 49 Achievement% 37 Wizard Run 0 Options --------- Layout 2 ASCII 0 Keyboard 0 Movement Arrows Keybinds 0 Fullscreen 2 Font 24/Smallcaps Map View 50x44 Zoom Use 0% Tactical HUD 1 Map Filters NONE Filters NONE Steam 1 RUN: 8ff5a836-709c-4c33-bff6-7d86e6542bc4